Workbook

Sheet Aktuelle Soz.Vers. Zahlen
A1: endgültige Sozialversicherungszahlen 2019 | C1: Alte und neue Bundesländer | G1: Zusatzbeitrag Kinderlose PV
C2: Alte Bundesländer | E2: Neue Bundesländer
A3: Krankenversicherung
A4: Versicherungspflichtgrenze „Neubestand“ | B4: monatlich | C4: 5062.5 | E4: Euro
B5: jährlich | C5: 60750 | E5: Euro
A6: Versicherungspflichtgrenze „Altbestand“ (gilt für am 31.12.2002 PKV-Versicherte) | B6: monatlich | C6: 4537.5 | E6: Euro
B7: jährlich | C7: 54450 | E7: Euro
A8: Beitragsbemessungsgrenze | B8: monatlich | C8: 4537.5 | E8: Euro
B9: jährlich | C9: 54450 | E9: Euro
A10: allgemeiner Beitragssatz der Krankenkassen | C10: 0.146
A11: Beitragssatz für die Berechnung des Arbeitgeberzuschusses | C11: 0.155
A12: durchschnittlicher Zusatzbeitrag | C12: 0.009
A13: monatlicher Höchstarbeitgeberzuschuss zur PKV | C13: 351.66 | E13: Euro
A14: Einkommensgrenze in der Familienversicherung | C14: 445 | E14: Euro
A15: Höchstkrankengeld der GKV /Tag | C15: 105.88 | E15: Euro
A16: Höchstbeitrag Standardtarif (allg. Beitragssatz: 14,6 %) | B16: einzeln | C16: 662.48 | E16: Euro
B17: Ehegatten 150 % | C17: 993.72 | E17: Euro
B18: Ehegatten einzeln | D18: 496.86 | E18: Euro
A19: Höchstbeitrag Basistarif 14,6% + 0,9 % (Zusatzbeitrag) | B19: einzeln | C19: 703.32 | E19: Euro
A21: Pflegeversicherung
A22: Beitragsbemessungsgrenze | B22: monatlich | D22: 4537.5 | E22: Euro
B23: jährlich | C23: 54450 | E23: Euro
A24: Beitragssatz PV | D24: 0.0305
A25: Beitragssatz PV (Kinderlose) | D25: 0.033 | G25: 0.0025
A26: monatlicher Höchstbeitrag | C26: 138.4 | D26: bzw. | E26: 149.74 | F26: Euro
A27: bei Hilfebedürftigkeit mit Basistarif PVN | D27: 69.2 | E27: Euro
A28: monatlicher Höchstarbeitgeberzuschuss | D28: 69.2 | E28: Euro
A29: Höchstbeitrag PVN | B29: einzeln | D29: 138.4 | E29: Euro
B30: Ehegatten 150 % | D30: 207.6 | E30: Euro
B31: Ehegatten einzeln | D31: 103.8 | E31: Euro
A32: Höchstbeitrag PVB | B32: einzeln | D32: 55.36 | E32: Euro
B33: Ehegatten 150 % | D33: 83.04 | E33: Euro
B34: Ehegatten einzeln | D34: 41.52 | E34: Euro
A35: bei Hilfebedürftigkeit mit Basistarif PVB | D35: 34.6 | E35: Euro
A36: Rentenversicherung
A37: Beitragsbemessungsgrenze | B37: monatlich | C37: 6700 | D37: Euro | E37: 6150 | F37: Euro
B38: jährlich | C38: 80400 | D38: Euro | E38: 73800 | F38: Euro
A39: Beitragssatz RV | C39: 0.186
A40: monatlicher Höchstbeitrag | C40: 1246.2 | D40: Euro | E40: 1143.9 | F40: Euro
A41: monatlicher Höchstarbeitgeberzuschuss | C41: 623.1 | D41: Euro | E41: 571.95 | F41: Euro
A42: Arbeitslosenversicherung
A43: Beitragsbemessungsgrenze | B43: monatlich | C43: 6700 | D43: Euro | E43: 6150 | F43: Euro
B44: jährlich | C44: 80400 | D44: Euro | E44: 73800 | F44: Euro
A45: Beitragssatz AL | C45: 0.025
A46: monatlicher Höchstbeitrag | C46: 167.5 | D46: Euro | E46: 153.75 | F46: Euro
A47: monatlicher Höchstarbeitgeberzuschuss | C47: 83.75 | D47: Euro | E47: 76.88 | F47: Euro
A48: Sonstige Werte
A49: Bezugsgröße § 18 SGB IV | B49: monatlich | C49: 3115 | D49: Euro | E49: 2870 | F49: Euro
B50: jährlich | C50: 37380 | D50: Euro | E50: 34440 | F50: Euro
A51: Geringverdienergrenze | B51: monatlich | C51: 325 Euro
A52: Geringfügigkeitsgrenze | B52: monatlich | C52: 450 Euro
A53: Studentenbeitrag KV ohne Zusatzbeitrag | B53: monatlich | C53: 66,35 Euro
A54: Studentenbeitrag PV | B54: monatlich | C54: 16,55 Euro / 18,17 Euro

Sheet Sozialversicherungszahlen GBL
A1: Werte für 2019 | E1: weitere Werte für 2017
A2: Werte für Berechnung
A3: GKV | B3: Alte BL | C3: Neue BL
A4: Beitragsbemessungsgrenze KV | B4: 4537.5 | C4: 4537.5 | E4: Mulitiplikator Zusch. Kinderl. PV | F4: 1
A5: allgemeiner Beitragssatz der Krankenkassen | B5: ='Aktuelle Soz.Vers. Zahlen'!C10:F10 -> 0.146 | C5: ='Aktuelle Soz.Vers. Zahlen'!C10:F10 -> 0.146
A6: durchschnittlicher Zusatzbeitrag | B6: 0.009 | C6: 0.009
A7: Beitragsbemessungsgrenze PV | B7: 4537.5 | C7: 4537.5
A8: Beitragssatz PV | B8: =VLOOKUP(A8,'Aktuelle Soz.Vers. Zahlen'!$A$4:$F$52,4,FALSE) -> 0.0305 | C8: =VLOOKUP(A8,'Aktuelle Soz.Vers. Zahlen'!$A$4:$F$52,4,FALSE) -> 0.0305
A9: Zusatzbeitrag PV (Kinderlose) | B9: 0.0025 | C9: 0.0025
A10: Beitragsbemessungsgrenze RV | B10: 6700 | C10: 6150
A11: Beitragssatz RV | B11: 0.186 | C11: 0.186
A12: Beitragsbemessungsgrenze AL | B12: 6700 | C12: 6150
A13: Beitragssatz AL | B13: =VLOOKUP(A13,'Aktuelle Soz.Vers. Zahlen'!$A$4:$F$52,3,FALSE) -> 0.025 | C13: =VLOOKUP(A13,'Aktuelle Soz.Vers. Zahlen'!$A$4:$F$52,3,FALSE) -> 0.025
A14: monatl. Höchstbeitrag RV | B14: 1246.2 | C14: 1143.9
A15: Höchstbeitrag PV | B15: 138.4 | C15: 138.4
A16: monatlicher Höchstarbeitgeberzuschuss zur PKV | B16: ='Aktuelle Soz.Vers. Zahlen'!C13:D13 -> 351.66
A17: monatlicher Höchstarbeitgeberzuschuss PV | B17: ='Aktuelle Soz.Vers. Zahlen'!D28 -> 69.2

Sheet KT-Rechner GKV Versicherte
A1: Berechnungschema für die Ermittlung des Krankentagegeldbedarfs Personenkreis: GKV Versicherte Arbeitnehmer Basis: durchschnittlicher lohnsteuerpflichtiger Jahresbruttoverdienst
A3: Versicherungsnummer
A4: Name
A6: Bundesland | B6: Alte Bundesländer | D6: <<< Pflichtfeld
A7: Kinder | B7: ohne Kind | D7: =D6 -> <<< Pflichtfeld
A9: Lohnsteuerpflichtiges Bruttoeinkommen (durchschnittlicher Monatswert)
A10: 0 | G10: Geben Sie bitte hier Ihre vorliegenden Daten ein!
A11: abzüglich Steuern | B11: Lohnsteuer
B12: Kirchensteuer
B13: Solidaritätszuschlag
B14: Steuern gesamt | E14: =E11+E12+E13 -> 0
A16: abzüglich Sozialversicherung Arbeitnehmeranteil | B16: Beitragssatz GKV inkl. Zusatzbeitragssatz | E16: 0.155 | G16: Geben Sie bei vorliegendem Einkommensnachweis hier bitte den korrekten %-Satz an!
B17: Krankenversicherung | D17: =IF(B6="Alte Bundesländer",'Sozialversicherungszahlen GBL'!B4,'Sozialversicherungszahlen GBL'!C4) -> 4537.5 | E17: =ROUNDUP(MIN((E9*E16/2),($D$17*E16/2))+MIN((E9*($E$16-E16))/2,($D$17*($E$16-E16))/2),2) -> 0
B18: Rentenversicherung | D18: =IF(B6="Alte Bundesländer",'Sozialversicherungszahlen GBL'!B10,'Sozialversicherungszahlen GBL'!C10) -> 6700 | E18: =MIN(E9*'Sozialversicherungszahlen GBL'!$B$11/2,$D$18*'Sozialversicherungszahlen GBL'!$B$11/2) -> 0
B19: Arbeitslosenversicherung | D19: =IF(B6="Alte Bundesländer",'Sozialversicherungszahlen GBL'!B12,'Sozialversicherungszahlen GBL'!C12) -> 6700 | E19: =MIN(E9*'Sozialversicherungszahlen GBL'!$B$13/2,$D$19*'Sozialversicherungszahlen GBL'!$B$13/2) -> 0
B20: Pflegeversicherung inkl. Zuschlag Kinderlose | D20: =IF(B6="Alte Bundesländer",'Sozialversicherungszahlen GBL'!B7,'Sozialversicherungszahlen GBL'!C7) -> 4537.5 | E20: =MIN(E9*'Sozialversicherungszahlen GBL'!$B$8/2,$D$20*'Sozialversicherungszahlen GBL'!$B$8/2)+IF(B7="ohne Kind",MIN(E9,D20)*'Sozialversicherungszahlen GBL'!B9) -> 11.34375
B21: Sozialversicherung gesamt | E21: =E17+E18+E19+E20 -> 11.34375
A23: entspricht durchschnittlichem Nettoeinkommen AVB (Monatswert) | E23: =E9-E14-E21 -> -11.34375
A25: abzüglich Nettokrankengeld GKV (Monatswert) | E25: =E42 -> -8.951069531
A27: entspricht maximal versicherbarem KT monatlich | E27: =E23-E25 -> -2.392680469
A29: dividiert durch 30 = maximal versicherbares KT täglich | E29: =E27/30 -> -0.07975601562
A32: Berechnung des Krankengeldes der GKV
A34: Lohnsteuerpflichtiges Bruttoeinkommen max. Beitragsbemessungsgrenze geteilt durch 30 mal 70 % | E34: =MIN((E9/30)*70%,$D$17/30*70%) -> 0
A35: im Vergleich zu
A36: Nettoeinkommen AVB geteilt durch 30 mal 90 % | E36: =E23/30*90% -> -0.3403125
A37: Der niedrigere Wert ist massgebend = Bruttokrankengeld GKV täglich | E37: =MIN(E34:E36) -> -0.3403125
A39: Bruttokrankengeld GKV täglich | E39: =E37 -> -0.3403125
A40: Abzug der Sozialversicherung | B40: =('Sozialversicherungszahlen GBL'!$B$11+'Sozialversicherungszahlen GBL'!$B$13+'Sozialversicherungszahlen GBL'!$B$8)/2+IF(B7="mit Kind",0,'Sozialversicherungszahlen GBL'!B9) -> 0.12325 | C40: (RV + AL + PV jew. zur Hälfte + ggf. Zuschlag Kinderlose) | E40: =(E39*$B$40) -> -0.04194351563
A41: Nettokrankengeld GKV täglich | E41: =E39-E40 -> -0.2983689844
A42: Nettokrankengeld GKV monatlich | E42: =E41*30 -> -8.951069531

Sheet KT-Rechner PKV Versicherte
A1: Berechnungschema für die Ermittlung des Krankentagegeldbedarfs Personenkreis: PKV Vollversicherte Arbeitnehmer Basis: durchschnittlicher lohnsteuerpflichtiger Jahresbruttoverdienst
A3: Versicherungsnummer
A4: Name
A6: Bundesland | B6: Alte Bundesländer | C6: <<< Pflichtfeld
A8: Lohnsteuerpflichtiges Bruttoeinkommen (durchschnittlicher Monatswert)
F9: Geben Sie bitte hier Ihre vorliegenden Daten ein!
A10: abzüglich Steuern | B10: Lohnsteuer
B11: Kirchensteuer
B12: Solidaritätszuschlag
B13: Steuern gesamt | D13: =D10+D11+D12 -> 0
A15: abzüglich Sozialversicherung Arbeitnehmeranteil | B15: Rentenversicherung | C15: =IF($B$6="Alte Bundesländer",'Sozialversicherungszahlen GBL'!B10,'Sozialversicherungszahlen GBL'!C10) -> 6700 | D15: =MIN(D8*'Sozialversicherungszahlen GBL'!$B$11/2,$C$15*'Sozialversicherungszahlen GBL'!$B$11/2) -> 0
B16: Arbeitslosenversicherung | C16: =IF($B$6="Alte Bundesländer",'Sozialversicherungszahlen GBL'!B12,'Sozialversicherungszahlen GBL'!C12) -> 6700 | D16: =MIN(D8*'Sozialversicherungszahlen GBL'!$B$13/2,$C$16*'Sozialversicherungszahlen GBL'!$B$13/2) -> 0
B17: Sozialversicherung gesamt | D17: =D15+D16 -> 0
A19: plus Arbeitgeberanteil Kranken- und Pflegeversicherung | B19: Krankenversicherung | C19: ="max. "&FIXED('Sozialversicherungszahlen GBL'!B16:C16,2)&" €" -> max. 351,66 € | D19: =MIN(('Sozialversicherungszahlen GBL'!$B$4*'Sozialversicherungszahlen GBL'!$B$5)/2,D8*'Sozialversicherungszahlen GBL'!$B$5/2) -> 0
B20: Pflegeversicherung | C20: ="max. "&FIXED('Sozialversicherungszahlen GBL'!B17:C17,2)&" €" -> max. 69,20 € | D20: =MIN(D8*'Sozialversicherungszahlen GBL'!$B$8/2,'Sozialversicherungszahlen GBL'!B7*'Sozialversicherungszahlen GBL'!$B$8/2) -> 0
B21: Beitragszahlung monatlich gesamt | D21: =D19+D20 -> 0
A23: entspricht durchschnittlichem Nettoeinkommen AVB (Monatswert) | D23: =D8-D13-D17+D21 -> 0
A25: plus Beitragszahlung Ausfallzeitwertung Rentenversicherung | B25: Bruttoeinkommen max. Beitragsbemessungsgrenze | D25: =IF($B$6="Alte Bundesländer",MIN(D8,'Sozialversicherungszahlen GBL'!$B$10),MIN(D8,'Sozialversicherungszahlen GBL'!$C$10)) -> 6700
B26: hiervon 80 % | D26: =D25*80 % -> 5360
B27: Beitragssatz Rentenversicherung | D27: ='Sozialversicherungszahlen GBL'!B11 -> 0.186
B28: Beitragszahlung monatlich gesamt | D28: =D26*D27 -> 996.96
A30: entspricht maximal versicherbarem KT monatlich | D30: =D23+D28 -> 996.96
A32: dividiert durch 30 = maximal versicherbares KT täglich | B32: =D30/30 -> 33.232

Sheet KT-Rechner Alg I
A1: KT-Rechner für Bezieher von Arbeitslosengeld I (SGB III) | F1: Hilfsspalten
A3: Versicherungsnummer
A4: Name
F5: Begrenzungen
A6: Leistungsbetrag - täglich: | C6: Geben Sie bitte hier Ihre vorliegenden Daten ein! | E6: =IF(B7>H18,H18,B7) -> 0
A7: Aktueller KV-Monatsbeitrag: | E7: =IF(B8>I18,I18,B8) -> 0
A8: Aktueller PV-Monatsbeitrag:
A9: Bemessungsentgelt - täglich: | K9: Bundesland
A10: Zugehörigkeit Bundesland | B10: alte Bundesländer | K10: alte Bundesländer
A11: Bestehende Stufenanzahl im Tarif SG/TG: | K11: neue Bundesländer
F12: Monatlicher Rentenversicherungsbeitrag: | J12: ='Sozialversicherungszahlen GBL'!B14 -> 1246.2 | K12: ='Sozialversicherungszahlen GBL'!C14 -> 1143.9
A13: Leistungsbetrag pro Monat: | B13: =ROUND((B6*30),2) -> 0 | G13: Faktor 1 | H13: Faktor 2 | I13: Tagesswert/ Mon | J13: West | K13: Ost | L13: Zugehörigkeit
A14: É Berücksichtigungsfähiger KV/PV-Monatsbeitrag: | B14: =ROUND(SUM(E6:E8),2) -> 0 | C14: ="Hinweis: max. "&FIXED(H18,2)&" € für KV/ max. "&FIXED(I18,2)&" € PV (Gesamt max. "&FIXED(J18,2)&" €)" -> Hinweis: max. 562,65 € für KV/ max. 110,72 € PV (Gesamt max. 673,37 €) | F14: Prozentwerte: | G14: 0.8 | H14: ='Sozialversicherungszahlen GBL'!B11 -> 0.186 | I14: 30 | J14: =J12*G14 -> 996.96 | K14: =K12*G14 -> 915.12 | L14: =IF(B10=K10,J14,K14) -> 996.96
A15: É Monatlicher Rentenversicherungsbeitrag: | B15: =ROUND(IF((B9*G14*H14*I14)>L14,L14,(B9*G14*H14*I14)),2) -> 0 | C15: ="Hinweis: max. "&FIXED(J14,2)&" € alte Bundesländer / max. "&FIXED(K14,2)&" € neue Bundesländer" -> Hinweis: max. 996,96 € alte Bundesländer / max. 915,12 € neue Bundesländer
A16: entspricht durchschnittlichem Nettoeinkommen AVB (Monatswert) | B16: =ROUND(SUM(B13:B15),2) -> 0 | C16: Zwischensumme | F16: Berücksichtigungsfähiger KV/PV-Monatsbeitrag:
H17: KV | I17: PV | J17: max
A18: dividiert durch 30 = max. versicherbares KT täglich | B18: =ROUND(B16/30,2) -> 0 | H18: =H23 -> 562.65 | I18: =I23 -> 110.72 | J18: =SUM(H18:I18) -> 673.37
H19: Berechnungsschritte
A20: Tarifstufe im Tarif SG/TG: | B20: =INT((B18-0.0001)/1)*1+1 -> 0 | C20: Tagessatz auf volle "1 Euro" gerundet! | F20: Beitragsbemessungsgrenze KV | H20: ='Sozialversicherungszahlen GBL'!B4 -> 4537.5 | I20: ='Sozialversicherungszahlen GBL'!B15 -> 138.4
A21: Differenz zu bestehenden Stufen in AwV: | B21: =B11-B20 -> 0 | H21: 0.8 | I21: 0.8
H22: ='Sozialversicherungszahlen GBL'!B5+'Sozialversicherungszahlen GBL'!B6 -> 0.155
H23: =H20*H21*H22 -> 562.65 | I23: =I20*I21 -> 110.72
